Cogmind - Beta 12 @@@ ROGUE MODE // 2023.05.30 @ 22:20:20 Player: Mr Goldstein Result: Self-destructed Performance ------------- Evolutions (3) 1500 Regions Visited (7) 1400 Robots Destroyed (5) 25 Value Destroyed (133) 133 Prototype IDs (1) 20 Alien Tech Used (0) 0 Bonus (634) 634 TOTAL SCORE: 3712 Bonus ------- Pacifist 634 Cogmind --------- Core Integrity 112/700 Matter 300/300 Energy 94/100 System Corruption 2% Temperature Cool (0) Movement Core (50) Location -7/Lower Caves Parts ------- > --- POWER (1) -------- (None) > --- PROPULSION (5) --- Gravmag System > --- UTILITY (5) ------ Visual Processing Unit Improved Signal Interpreter Hacking Suite System Shield > --- WEAPON (2) ------- (None) > --- INVENTORY (5) ---- Micro Nuclear Core Small Storage Unit Backup Plating I Chainsword Chainsword Peak State ------------ > --- POWER ------------ (None) > --- PROPULSION ------- Backup Propulsion I Improved Hover Unit Gravmag System Gravmag System Gravmag System > --- UTILITY ---------- Visual Processing Unit Improved Signal Interpreter Improved Light Armor Plating System Shield > --- WEAPON ----------- Chainsword > --- INVENTORY -------- Micro Nuclear Core Small Storage Unit Backup Plating I Chainsword [Rating: 31] Favorites ----------- Power Backup Power I Engine Backup Power I Power Core Micro Nuclear Core Propulsion Gravmag System Hover Unit Gravmag System Flight Unit VTOL Module Utility System Shield Processor Improved Signal Interpreter Hackware System Shield Protection Improved Light Armor Plating Weapon Chainsword Energy Gun Backup Laser I Slashing Weapon Chainsword Build | -11 -10 -10 -10 -9 -8 -7 -7 ------- Run | Jun Mat Min Exi Min Mat Fac Low Slots Evolved 6 | . . . . . 4 2 . Power . | . . . . . . . . Propulsion 3 | . . . . . 2 1 . Utility 3 | . . . . . 2 1 . Weapon . | . . . . . . . . Parts Attached 18 | . . 1 . . 1 11 5 Power 1 | . . . . . . 1 . Engine . | . . . . . . . . Core 1 | . . . . . . 1 . Reactor . | . . . . . . . . Propulsion 9 | . . 1 . . . 5 3 Treads . | . . . . . . . . Leg . | . . . . . . . . Wheel . | . . . . . . . . Hover 6 | . . . . . . 5 1 Flight 3 | . . 1 . . . . 2 Utility 6 | . . . . . 1 4 1 Device . | . . . . . . . . Storage . | . . . . . . . . Processor 2 | . . . . . . 2 . Hackware 2 | . . . . . . 1 1 Protection 2 | . . . . . 1 1 . Artifact . | . . . . . . . . Weapon 2 | . . . . . . 1 1 Energy Gun . | . . . . . . . . Energy Cannon . | . . . . . . . . Ballistic Gun . | . . . . . . . . Ballistic Cannon . | . . . . . . . . Launcher . | . . . . . . . . Special Weapon . | . . . . . . . . Impact Weapon . | . . . . . . . . Slashing Weapon 2 | . . . . . . 1 1 Piercing Weapon . | . . . . . . . . Special Melee Weapon . | . . . . . . . . Unidentified Prototypes 1 | . . . . . . 1 . Parts Lost 10 | . . 1 . . 1 . 8 Power . | . . . . . . . . Propulsion 9 | . . 1 . . 1 . 7 Utility 1 | . . . . . . . 1 Weapon . | . . . . . . . . Highest Loss Streak 6 | . . 1 . . 1 . 6 To Critical Strikes . | . . . . . . . . Average Slot Usage (%) 31 | . . 5 . . 52 42 44 Hover 13 | . . . . . 12 27 13 Processor 5 | . . . . . . 3 15 Hackware 3 | . . . . . . 3 7 Protection 3 | . . . . . 19 4 2 Energy Gun 1 | . . . . . 14 . . Slashing Weapon 1 | . . . . . . 2 2 Naked Turns 182 | . 23 45 65 37 12 . . Heaviest Build 8 | . . . . . 8 3 3 Greatest Support 33 | 3 3 4 3 3 12 33 9 Greatest Overweight (x) 1 | . . . . . 1 . . Average Overweight (x) . | . . . . . . . . Largest Inventory Capacity 5 | 5 5 5 5 5 5 5 5 Average Capacity 5 | 5 5 5 5 5 5 5 5 Most Carried 5 | 1 1 1 1 1 3 5 5 Average Carried 3 | . 1 1 1 1 1 4 4 Final Capacity 5 | 5 5 5 5 5 5 5 5 Final Carried 5 | 1 1 1 1 1 3 5 5 Class Distribution -------------------- 100% | Mutant Dominant Class ---------------- Mutant | -10/Materials Mutant | -10/Mines Mutant | -10/Exiles Mutant | -9/Mines Mutant | -8/Materials Mutant | -7/Factory Mutant | -7/Lower Caves Resources | -11 -10 -10 -10 -9 -8 -7 -7 ----------- Run | Jun Mat Min Exi Min Mat Fac Low Matter Collected 353 | 194 . . . . . 93 66 Remotely . | . . . . . . . . Salvage Created 138 | . . . . . . 38 100 Parts 9 | . . . . . . 3 6 Haulers Intercepted . | . . . . . . . . Recyclers Shooed . | . . . . . . . . Parts Field Recycled . | . . . . . . . . Retrieved Matter . | . . . . . . . . Parts Self-Destructed 4 | . . . . . . . 4 Prevented . | . . . . . . . . Kills | -11 -10 -10 -10 -9 -8 -7 -7 ------- Run | Jun Mat Min Exi Min Mat Fac Low Combat Hostiles Destroyed 4 | . . . . . . . 4 Melee 4 | . . . . . . . 4 Classes Destroyed 2 | . . . . . . 1 1 Watcher 1 | . . . . . . 1 . Swarmer 4 | . . . . . . . 4 Best Kill Streak 2 | . . . . . . 1 2 Combat Bots Only 2 | . . . . . . . 2 Max Kills in Single Turn 1 | . . . . . . 1 1 Gunslinging . | . . . . . . . . Exploded . | . . . . . . . . Melee 1 | . . . . . . . 1 Uniques/NPCs Destroyed . | . . . . . . . . Combat | -11 -10 -10 -10 -9 -8 -7 -7 -------- Run | Jun Mat Min Exi Min Mat Fac Low Damage Taken 1518 | 3 48 99 . . 281 . 1087 Core 753 | 3 48 90 . . 24 . 588 Absorbed by Shields . | . . . . . . . . Core Remaining (%) 78 | 98 . . . 43 95 . . Volleys Fired . | . . . . . . . . Largest . | . . . . . . . . Hottest . | . . . . . . . . Shots Fired . | . . . . . . . . Gun . | . . . . . . . . Cannon . | . . . . . . . . Launcher . | . . . . . . . . Special . | . . . . . . . . Kinetic . | . . . . . . . . Thermal . | . . . . . . . . Explosive . | . . . . . . . . Electromagnetic . | . . . . . . . . Robot Hit Streak . | . . . . . . . . Robot Miss Streak . | . . . . . . . . Penetration Max . | . . . . . . . . Secondary Targets . | . . . . . . . . Shots Hit Robots 13 | . . . . . . 3 10 Core Hits 5 | . . 1 . . . 1 3 Critical Kills . | . . . . . . . . Critical Parts Destroyed . | . . . . . . . . Critical Strikes . | . . . . . . . . Melee Attacks 24 | . . . . . . 4 20 Impact . | . . . . . . . . Slashing 24 | . . . . . . 4 20 Piercing . | . . . . . . . . Sneak Attacks . | . . . . . . . . Combat Hostiles . | . . . . . . . . Follow-up Attacks . | . . . . . . . . Damage Inflicted 494 | 7 . 11 . . . 120 356 Guns . | . . . . . . . . Cannons . | . . . . . . . . Explosions . | . . . . . . . . Melee 476 | . . . . . . 120 356 Ramming 18 | 7 . 11 . . . . . Kinetic . | . . . . . . . . Thermal . | . . . . . . . . Explosive . | . . . . . . . . Electromagnetic . | . . . . . . . . Impact . | . . . . . . . . Slashing 476 | . . . . . . 120 356 Piercing . | . . . . . . . . Highest Corruption 2 | . . . . . . 2 2 Average Corruption 2 | . . . . . . 2 2 Corruption Purged . | . . . . . . . . Corruption Blocked . | . . . . . . . . Effects 9 | . . . . . . 3 6 Message Errors 2 | . . . . . . 2 . Matter Fused 2 | . . . . . . 1 1 Heat Flow Errors 1 | . . . . . . . 1 Energy Discharges 3 | . . . . . . . 3 Data Loss (minor) 1 | . . . . . . . 1 Overload Shots . | . . . . . . . . Overflow Damage 87 | . . . . . . 9 78 Projectiles . | . . . . . . . . Explosions . | . . . . . . . . Melee 87 | . . . . . . 9 78 Knockbacks . | . . . . . . . . Impact . | . . . . . . . . Kinetic . | . . . . . . . . Secondary . | . . . . . . . . Self-Inflicted Damage 7 | 3 . 4 . . . . . Shots . | . . . . . . . . Rammed 5 | 2 . 3 . . . . . Targets Rammed 5 | 2 . 3 . . . . . Kicked . | . . . . . . . . Crushed . | . . . . . . . . Highest Temperature 68 | . . . . . . . 68 Average Temperature 35 | . . . . . . . 35 Received Heat Transfer . | . . . . . . . . Siege Activations . | . . . . . . . . Robots Corrupted . | . . . . . . . . Combat Hostiles . | . . . . . . . . Parts Fried . | . . . . . . . . Impact Corruptions . | . . . . . . . . Robots Melted . | . . . . . . . . Combat Hostiles . | . . . . . . . . Parts Melted . | . . . . . . . . Heat Transferred . | . . . . . . . . Parts Sabotaged . | . . . . . . . . Parts Stolen . | . . . . . . . . Parts Stripped . | . . . . . . . . Power Chain Reactions . | . . . . . . . . Missiles Intercepted . | . . . . . . . . Alert | -11 -10 -10 -10 -9 -8 -7 -7 ------- Run | Jun Mat Min Exi Min Mat Fac Low Peak Influence 108 | . 30 31 . . 36 108 . Initial 11 | . . 11 . . . 11 . Average 26 | . 13 22 . . 14 40 . Maximum Alert Level . | . . . . . . . . Low Security (%) 100 | 100 100 100 . 100 100 100 . Level 1 . | . . . . . . . . Level 2 . | . . . . . . . . Level 3 . | . . . . . . . . Level 4 . | . . . . . . . . Level 5 . | . . . . . . . . High Security . | . . . . . . . . Max Security . | . . . . . . . . Squads Dispatched 1 | . 1 . . . . . . Investigation 1 | . 1 . . . . . . Extermination . | . . . . . . . . Reinforcement . | . . . . . . . . Assault . | . . . . . . . . Garrison . | . . . . . . . . Intercept . | . . . . . . . . Searches Triggered . | . . . . . . . . Construction Impeded . | . . . . . . . . Haulers Reinforced . | . . . . . . . . Active Scanning Responses . | . . . . . . . . Cargo Convoy Interrupts . | . . . . . . . . Stealth | -11 -10 -10 -10 -9 -8 -7 -7 --------- Run | Jun Mat Min Exi Min Mat Fac Low Distress Signals . | . . . . . . . . Communications Jammed . | . . . . . . . . Distress Signals . | . . . . . . . . Times Spotted 34 | . 3 14 . 3 6 2 6 Peak Tracking Total 16 | . 3 16 . 3 6 1 4 Tactical Retreats 5 | . 1 3 . . . . 1 Traps | -11 -10 -10 -10 -9 -8 -7 -7 ------- Run | Jun Mat Min Exi Min Mat Fac Low Traps Triggered 1 | . 1 . . . . . . Indirectly . | . . . . . . . . Trap Hack Attempts . | . . . . . . . . Triggered . | . . . . . . . . Disarmed . | . . . . . . . . Reprogrammed . | . . . . . . . . Reused . | . . . . . . . . Traps Extracted . | . . . . . . . . Installed . | . . . . . . . . Triggered . | . . . . . . . . Machines | -11 -10 -10 -10 -9 -8 -7 -7 ---------- Run | Jun Mat Min Exi Min Mat Fac Low Machines Disabled . | . . . . . . . . Max in Single Turn . | . . . . . . . . Garrison Access 1 | . . . . . 1 . . Machines Repaired . | . . . . . . . . Machines Sabotaged . | . . . . . . . . Overloaded Fab Kills . | . . . . . . . . Hacking | -11 -10 -10 -10 -9 -8 -7 -7 --------- Run | Jun Mat Min Exi Min Mat Fac Low Machines Accessed 4 | . . . 1 . 2 1 . Terminals 1 | . . . . . . 1 . Fabricators . | . . . . . . . . Repair Stations 1 | . . . . . 1 . . Recycling Units . | . . . . . . . . Scanalyzers . | . . . . . . . . Garrison Access 1 | . . . . . 1 . . Total Hacks 4 | . . . 1 . 2 1 . Successful 3 | . . . 1 . 2 . . Failed 1 | . . . . . . 1 . Catastrophic 1 | . . . . . . 1 . Database Lockouts . | . . . . . . . . Manual . | . . . . . . . . Terminals 1 | . . . . . . 1 . Fabricators . | . . . . . . . . Repair Stations 1 | . . . . . 1 . . Recycling Units . | . . . . . . . . Scanalyzers . | . . . . . . . . Garrison Access 1 | . . . . . 1 . . Terminal Hacks 1 | . . . 1 . . . . Record 1 | . . . 1 . . . . Fabricator Hacks . | . . . . . . . . Repair Station Hacks 1 | . . . . . 1 . . Refit 1 | . . . . . 1 . . Recycling Unit Hacks . | . . . . . . . . Scanalyzer . | . . . . . . . . Garrison Access Hacks 1 | . . . . . 1 . . Seal Access 1 | . . . . . 1 . . Unauthorized Hacks . | . . . . . . . . Terminals . | . . . . . . . . Fabricators . | . . . . . . . . Repair Stations . | . . . . . . . . Recycling Units . | . . . . . . . . Scanalyzers . | . . . . . . . . Garrison Access . | . . . . . . . . Data Cores Recovered . | . . . . . . . . Used . | . . . . . . . . Hacking Detections 1 | . . . . . . 1 . Full Trace Events . | . . . . . . . . Feedback Events . | . . . . . . . . Feedback Blocked . | . . . . . . . . Robot Schematics Acquired . | . . . . . . . . Robots Built . | . . . . . . . . Authchips . | . . . . . . . . Time . | . . . . . . . . Total Robot Build Rating . | . . . . . . . . Part Schematics Acquired . | . . . . . . . . Parts Built . | . . . . . . . . Authchips . | . . . . . . . . Time . | . . . . . . . . Total Part Build Rating . | . . . . . . . . Parts Repaired . | . . . . . . . . Time . | . . . . . . . . Parts Recycled . | . . . . . . . . Recycled Matter . | . . . . . . . . Retrieved Matter . | . . . . . . . . Retrieved Components . | . . . . . . . . Parts Scanalyzed . | . . . . . . . . Part Schematics Acquired . | . . . . . . . . Parts Damaged . | . . . . . . . . Bothacking | -11 -10 -10 -10 -9 -8 -7 -7 ------------ Run | Jun Mat Min Exi Min Mat Fac Low Used RIF Installer . | . . . . . . . . Robots Hacked . | . . . . . . . . Non-combat . | . . . . . . . . Combat . | . . . . . . . . Robot Hacks Applied . | . . . . . . . . Relay Couplers Released 1 | . . . . . 1 . . Machine Destruction 1 | . . . . . 1 . . Fabnet Peak Effective % . | . . . . . . . . Robots Rewired . | . . . . . . . . Allies Hacked . | . . . . . . . . Hacks Repelled . | . . . . . . . . Allies | -11 -10 -10 -10 -9 -8 -7 -7 -------- Run | Jun Mat Min Exi Min Mat Fac Low Total Allies . | . . . . . . . . Largest Group . | . . . . . . . . Highest-Rated Group . | . . . . . . . . Highest-Rated Ally . | . . . . . . . . Total Orders . | . . . . . . . . Ally Attacks . | . . . . . . . . Total Damage . | . . . . . . . . Kills . | . . . . . . . . Allies Corrupted . | . . . . . . . . Allies Melted . | . . . . . . . . Intel | -11 -10 -10 -10 -9 -8 -7 -7 ------- Run | Jun Mat Min Exi Min Mat Fac Low Robot Analysis Total . | . . . . . . . . Derelict Logs Recovered 1 | . . . . . . . 1 Drone Launches . | . . . . . . . . Drone Recoveries . | . . . . . . . . Exploration | -11 -10 -10 -10 -9 -8 -7 -7 ------------- Run | Jun Mat Min Exi Min Mat Fac Low Turns Passed 686 | 15 23 75 65 37 49 196 226 Spaces Moved 1159 | 23 45 155 130 74 67 328 337 Core 1036 | 23 45 82 130 74 30 322 330 Treads . | . . . . . . . . Legs . | . . . . . . . . Wheels . | . . . . . . . . Hover 45 | . . . . . 37 6 2 Flight 78 | . . 73 . . . . 5 Fastest Speed 32 | 50 50 40 50 50 50 50 32 Average Speed 50 | 50 50 45 50 50 66 50 49 Slowest Speed 160 | 50 50 50 50 50 160 60 60 Overloaded Moves . | . . . . . . . . Propulsion Burnouts . | . . . . . . . . Robots Hopped 4 | . . 4 . . . . . Cave-ins Triggered . | . . . . . . . . Exploration Rate (%) 26 | 4 18 39 50 26 12 10 56 Regions Visited 7 Branch Regions 4 Pre-discovered Areas 1 | . . . 1 . . . . Known Exits Taken 1 | . . . . . . 1 . Unknown Exits Taken 6 | 1 1 1 1 1 1 . . Scrap Searched 2 | . . . . . . . 2 Spaces Dug . | . . . . . . . . Terrain Destroyed . | . . . . . . . . Melee . | . . . . . . . . Projectile . | . . . . . . . . AOE . | . . . . . . . . Terrain Rammed . | . . . . . . . . Walls Destroyed . | . . . . . . . . Machines Disabled . | . . . . . . . . Actions | -11 -10 -10 -10 -9 -8 -7 -7 --------- Run | Jun Mat Min Exi Min Mat Fac Low Total 1211 | 25 44 154 129 73 72 351 363 Wait . | . . . . . . . . Move 1145 | 22 44 147 129 73 66 327 337 Hop 3 | . . 3 . . . . . Pick Up 4 | 1 . . . . . 3 . Fast Attach 16 | . . 1 . . 1 10 4 Attach 2 | . . . . . . 1 1 Detach 5 | . . . . . 2 2 1 Swap . | . . . . . . . . Drop 7 | . . . . . 3 4 . Fire . | . . . . . . . . Melee 24 | . . . . . . 4 20 Ram 5 | 2 . 3 . . . . . Kick . | . . . . . . . . Crush . | . . . . . . . . Escape Stasis . | . . . . . . . . Rewire . | . . . . . . . . Trap . | . . . . . . . . Miscellaneous . | . . . . . . . . Route ------- -11/Junkyard -10/Materials -10/Mines -10/Exiles -9/Mines -8/Materials -7/Factory (discovered 2 exits: [*Sto] / *Low) -7/Lower Caves History --------- Turn | Location | Event 4 | -11/Junkyard | Discovered new exit (range 15) 16 | -11/Junkyard | Entered Materials 33 | -10/Materials | Discovered new exit (range 12) 39 | -10/Materials | Entered Mines 40 | -10/Mines | Assembled infested the area 45 | -10/Mines | Assisted by a Guerilla fighting off Assembled 49 | -10/Mines | A weapon hastily lodged in a ceiling crevice suddenly fell to the ground 96 | -10/Mines | Core integrity fell below 50% 111 | -10/Mines | Deemed a non-threat by the Exiles lab entrance 111 | -10/Mines | Discovered new exit (range 5) 114 | -10/Mines | Entered Exiles 126 | -10/Exiles | Met 8R-AWN 135 | -10/Exiles | Met EX-HEX 160 | -10/Exiles | Learned location of Zion (-6) 174 | -10/Exiles | Discovered new exit (range 14) 179 | -10/Exiles | Entered Mines 182 | -9/Mines | Received a Mining Laser from a helpful Derelict 213 | -9/Mines | Discovered new exit (range 7) 216 | -9/Mines | Entered Materials 216 | -8/Materials | Evolved 4 slots: Propulsion x2, Utility x2 258 | -8/Materials | Discovered new exit (range 8) 265 | -8/Materials | Entered Factory 265 | -7/Factory | Evolved 2 slots: Propulsion x1, Utility x1 324 | -7/Factory | Build established: Mutant 329 | -7/Factory | Discovered new exit (range 14) 349 | -7/Factory | Discovered new exit (range 5) 461 | -7/Factory | Identified exit to Lower Caves 461 | -7/Factory | Entered Lower Caves 487 | -7/Lower Caves | Learned Factory stockpile data 577 | -7/Lower Caves | Core integrity fell below 50% 592 | -7/Lower Caves | Lost 6 parts (5n1u) 608 | -7/Lower Caves | Core integrity fell below 20% 659 | -7/Lower Caves | Encountered a Warlord checkpoint 678 | -7/Lower Caves | Spotted B-75 Beast 687 | -7/Lower Caves | Self-destructed Last Messages --------------- 00626_ Destroyed VTOL Module. 00629_ Destroyed Autogun. 00629_ Destroyed VTOL Module. 00632_ S-27 Virus destroyed. 00636_ System corrupted: Matter fused (-6). 00636_ Acquired 6 matter. 00657_ System corrupted: Component data lost. 00659_ QH-E2H(M): "Estimated chance of a MAIN.C patrol making it through here: 0%. Unless they've got a Behemoth in tow, in which case it's probably closer to 100%." 00664_ Searching scrap... 00664_ Found Gravmag System. 00664_ Found Shock Absorption System. 00664_ Found Enh. Flamer. 00664_ Found Hacking Suite. 00664_ Found 29 Matter. 00665_ Acquired Gravmag System. 00668_ Acquired Hacking Suite. 00670_ Acquired 20 matter. 00675_ System corrupted: Energy discharge (-26). Map ----- +----------------------------------------------------+ | ?????????????????????????????????????????????????? | | ?????????????????????????????????????????????????? | | ?????????????????????????????????????????????????? | | ?????????????????????????????????????????????????? | | ?????????????????????????????????????????????????? | | ???????????????????????????????????????????????#?? | | ?????????????????????????????????????????????? ## | | ???????????????????????????????????????????? | | ???????????????????????????????????????????? | | ???????????????????????????????????????????? | | ????????????????????????????????????????????? | | ????????????????????????????????????????????? | | ?????????????????????????????????????????????? | | ??????????????????????????????????????????????? | | ???????????????????????????????????????????????? | | ????????????????????????????????????????##??????? | | ????????????????????????????????????????# ####???# | | ????????????????????????????????????????# #??## | | ????????????????????????#####??????????## ??## | | ???????????????????????## #??????????# ?## | | ??????????????????????## #??????????# #?# | | ??????????????????????# #???????????# #?# | | ??????????????????????# #????????????# ### | | ?????????????????????## #?????????#### ## | | ????????????????????## #???????###"## # | | ???????????????????## @ #????#### ### | | ??????????????????## ##???## ##?? | | ?????????????????## ###### ##??? | | ????????????????## ## #???? | | ???????????????## ##???? | | ???????????????# ## #????? | | ???????????????### ### #???? | | ?????????????????### #####?# #??? | | ???????????????????# ##?????# #? | | ???????????????????### ####?????# #? | | ?????????????????????###????????# ##" | | ????????????????????????????????# ##?# | | ????????????????????????????????###########??? | | ??????????????????????????????????????????????? | | ???????????????????????????????????????????????? | | ???????????????????????????????????????????????? | | ?????????????????????????????????????????????????? | | ?????????????????????????????????????????????????? | | ?????????????????????????????????????????????????? | | ?????????????????????????????????????????????????? | | ?????????????????????????????????????????????????? | | ?????????????????????????????????????????????????? | | ?????????????????????????????????????????????????? | | ?????????????????????????????????????????????????? | | ?????????????????????????????????????????????????? | +----------------------------------------------------+ Best States ------------- Heat Dissipation 34 Energy Generation 9 Energy Capacity 100 Matter Stores 300 Matter Capacity 300 Sight Range 18 Terrain Scan Density 10 Armor Coverage 310 Evasion (%) 62 Offensive Hacking 10 Defensive Hacking 10 Item Schematics ----------------- None Robot Schematics ------------------ None Fabricated ------------ Nothing Alien Tech Used ----------------- None Achievements -------------- None Challenges ------------ None Game ------ Seed ArcHelicalSteel Manual? 0 Play Time 00:09:03 Cumulative 255.7 hours Start 2023.05.30 @ 22:13:15 End 2023.05.30 @ 22:20:20 Sessions 1 Manual Loads 0 Difficulty Rogue Special Mode None Game No. 763 Rogue 763 Adventurer 0 Explorer 0 Win Type - Total 13 Types 8/0/3/2/0/0/0/0/0 Lore% 87 Gallery% 84 Achievement% 76 Wizard Run 0 Options --------- ASCII 0 Keyboard 0 Movement Numpad Keybinds 0 Fullscreen 1 Font 16/SmallcapsGlow Map View 75x55 Tactical HUD 1 Map Filters NONE Filters NONE Steam 1 RUN: 7d742939-6c58-48bd-90a1-9fd5d30d704c